fUST/lending_fUST_20251012
["ID","MTS","AMOUNT","RATE_DAILY","PERIOD"]
[390905675,1760208656222,-250.0,0.000301,10]
[390905676,1760208656231,-227.18,0.00030136,120]
[390905677,1760208656240,-1555.84,0.00030136,8]
[390905678,1760208656249,-650.0,0.00030137,5]
[390905679,1760208656259,-5500.0,0.00030152,5]
[390905680,1760208656268,-152.198179,0.0003016,10]
[390905681,1760208656278,-154.809388,0.0003016,10]
[390905682,1760208656287,-12486.03,0.0003017,2]
[390905683,1760208656296,-12486.03,0.0003017,2]
[390905684,1760208656305,-12486.03,0.0003017,2]
[390905685,1760208656314,-12486.03,0.0003017,2]
[390905686,1760208656323,-12486.03,0.0003017,2]
[390905687,1760208656333,-12486.03,0.0003017,2]
[390905688,1760208656342,-12486.03,0.0003017,2]
[390905689,1760208656354,-12486.03,0.0003017,2]
[390905690,1760208656363,-12486.03,0.0003017,2]
[390905691,1760208656372,-12486.03,0.0003017,2]
[390905692,1760208656382,-500.0,0.00030182,7]
[390905693,1760208656391,-500.0,0.00030182,10]
[390905694,1760208656400,-413.41,0.00030182,15]
[390905695,1760208656410,-150.07,0.000302,45]
[390905696,1760208656420,-160.0,0.000302,60]
[390905697,1760208656429,-151.0,0.000302,12]
[390905698,1760208656440,-250.0,0.000302,10]
[390905699,1760208656450,-151.0,0.00030216,30]
[390905700,1760208656460,-239.837048,0.00030216,30]
[390905701,1760208656469,-184.294073,0.00030216,30]
[390905702,1760208656478,-1000.0,0.00030216,14]
[390905703,1760208656488,-10000.0,0.00030237,2]
[390905704,1760208656497,-10000.0,0.00030237,2]
[390905705,1760208656507,-10000.0,0.00030237,2]
[390905706,1760208656516,-10000.0,0.00030237,2]
[390905707,1760208656525,-10000.0,0.00030237,2]
[390905708,1760208656534,-10000.0,0.00030237,2]
[390905709,1760208656543,-10000.0,0.00030237,2]
[390905710,1760208656553,-10000.0,0.00030237,2]
[390905711,1760208656562,-10000.0,0.00030237,2]
[390905712,1760208656571,-10000.0,0.00030237,2]
[390905713,1760208656580,-10000.0,0.00030237,2]
[390905714,1760208656589,-277.57226008,0.00030237,2]
[390905715,1760208656601,-432.64860621,0.00030237,2]
[390905716,1760208656748,-5000.0,0.00023549,2]
[390905717,1760208656758,-816.06,0.0002368,10]
[390905718,1760208656768,-3888.7,0.00024657,9]
[390905719,1760208656777,-3888.7,0.00024657,9]
[390905720,1760208656786,-3888.7,0.00024657,9]
[390905721,1760208656796,-3888.7,0.00024657,9]
[390905722,1760208656805,-2572.6731615,0.00024657,9]
[390905723,1760208657782,-295.13886484,0.00024657,9]
[390905724,1760208657793,-1020.88797366,0.00024657,9]
[390905725,1760208657802,-3888.7,0.00024657,9]
[390905726,1760208657812,-228.119505,0.00024657,7]
[390905727,1760208657821,-3888.7,0.00024657,9]
[390905728,1760208657830,-3888.7,0.00024657,9]
[390905729,1760208657839,-3888.7,0.00024657,9]
[390905730,1760208657848,-500.0,0.00024657,9]
[390905731,1760208657858,-3888.7,0.00024657,9]
[390905732,1760208657870,-3888.7,0.00024657,9]
[390905733,1760208657879,-500.0,0.00024657,9]
[390905734,1760208657889,-3888.7,0.00024657,9]
[390905735,1760208657899,-500.0,0.00024657,9]
[390905736,1760208657908,-228.119505,0.00024657,7]
[390905737,1760208657917,-3888.7,0.00024657,9]
[390905738,1760208657926,-3888.7,0.00024657,9]
[390905739,1760208657935,-3888.7,0.00024657,9]
[390905740,1760208657945,-3888.7,0.00024657,9]
[390905741,1760208657954,-3888.7,0.00024657,9]
[390905742,1760208657964,-795.86792013,0.00024657,9]
[390905743,1760208657979,-692.25170984,0.00024657,9]
[390905744,1760208658008,160.0,0.000221,2]
[390905745,1760208658198,9840.01,0.0002359,2]
[390905746,1760208658221,10000.01,0.0002359,2]
[390905747,1760208658243,10000.01,0.0002359,2]
[390905749,1760208670704,349.81,0.00019025,2]
[390905750,1760208671138,699.61,0.00020755,2]
[390905751,1760208703098,-1049.42,0.00022484,2]
[390905752,1760208703125,-2901.17,0.00023354,2]
[390905753,1760208740732,1000.488837,0.00013699,2]
[390905754,1760208740942,1000.488837,0.00020187,2]
[390905755,1760208749174,331.86,0.00018978,2]
[390905756,1760208749585,663.73,0.00020704,2]
[390905757,1760208751261,-995.59,0.00022429,2]
[390905758,1760208828415,306.52,0.00018997,2]
[390905759,1760208828827,613.04,0.00020724,2]
[390905760,1760208829223,919.56,0.00022451,2]
[390905761,1760208855375,5000.0,0.0002312,2]
[390905762,1760208878142,3160.89,0.0002312,2]
[390905763,1760208878166,1839.11,0.0002312,2]
[390905764,1760208882040,151.0,0.00017,2]
[390905765,1760208900250,5000.0,0.0002312,2]
[390905766,1760208908380,5000.0,0.0002312,2]
[390905767,1760208917346,324.62,0.00018966,2]
[390905768,1760208917737,649.23,0.0002069,2]
[390905769,1760208918133,973.85,0.00022414,2]
[390905770,1760208925871,-5000.0,0.00023589,2]
[390905771,1760208932465,0.01,0.00023589,2]
[390905772,1760208932485,4999.99,0.00023589,2]
[390905773,1760208951610,-1317.53,0.0002358,3]
[390905774,1760208951638,-2364.95,0.00023589,2]
[390905775,1760208952877,-2635.05,0.00023589,2]
[390905776,1760208958947,658.76,0.0002358,3]
[390905777,1760208974138,-5000.0,0.00023353,2]
[390905778,1760208993936,5000.0,0.00023555,2]
[390905779,1760208995929,359.69,0.00019001,2]
[390905780,1760208996371,719.38,0.00020729,2]
[390905781,1760208996762,1079.06,0.00022456,2]
[390905782,1760209075938,340.36,0.00018861,2]
[390905783,1760209076530,680.72,0.00020576,2]
[390905784,1760209100321,453.59290944,0.00020453,4]
[390905785,1760209100371,199.22824536,0.00020657,4]
[390905786,1760209155834,327.36,0.0001883,2]
[390905787,1760209156260,654.72,0.00020542,2]
[390905788,1760209156641,5000.0,0.00022291,2]
[390905789,1760209156667,982.09,0.00022253,2]
[390905790,1760209171540,5000.0,0.00022275,2]
[390905791,1760209235098,200.0,0.00027,120]
[390905792,1760209235952,327.78,0.00018835,2]
[390905793,1760209236359,655.56,0.00020547,2]
[390905794,1760209302961,-300.0,0.00021916,2]
[390905795,1760209307396,-500.0,0.00021917,2]
[390905796,1760209307429,-298.15,0.00021917,2]
[390905797,1760209307457,-500.0,0.00021917,2]
[390905798,1760209307487,-500.0,0.00021917,2]
[390905799,1760209307517,-500.0,0.00021917,2]
[390905800,1760209307545,-153.42,0.00021917,2]
[390905801,1760209307572,-500.0,0.00021917,2]
[390905802,1760209307598,-500.0,0.00021917,2]
[390905803,1760209307626,-500.0,0.00021917,2]
[390905804,1760209307654,-500.0,0.00021917,2]
[390905805,1760209307682,-500.0,0.00021917,2]
[390905806,1760209307738,-500.0,0.00021917,2]
[390905807,1760209307768,-500.0,0.00021917,2]
[390905808,1760209307796,-500.0,0.00021917,2]
[390905809,1760209307824,-500.0,0.00021917,2]
[390905810,1760209307851,-500.0,0.00021917,2]
[390905811,1760209307878,-500.0,0.00021917,2]
[390905812,1760209307906,-547.86,0.00021917,2]
[390905813,1760209307935,-500.0,0.00021917,2]
[390905814,1760209307964,-500.0,0.00021917,2]
[390905815,1760209307991,-404.29,0.00021917,2]
[390905816,1760209309470,-95.71,0.00021917,2]
[390905817,1760209309498,-500.0,0.00021917,2]
[390905818,1760209309525,-407.38,0.00021917,2]
[390905819,1760209311360,500.0,0.00021917,2]
[390905820,1760209311607,558.54,0.00021917,2]
[390905821,1760209317910,500.0,0.00021917,2]
[390905822,1760209318139,500.0,0.00021917,2]
[390905823,1760209318513,500.0,0.00021917,2]
[390905824,1760209318855,500.0,0.00021917,2]
[390905825,1760209319089,-983.34,0.00022259,2]
[390905826,1760209319149,500.0,0.00021917,2]
[390905827,1760209319387,500.0,0.00021917,2]
[390905828,1760209319639,500.0,0.00021917,2]
[390905829,1760209319876,500.0,0.00021917,2]
[390905830,1760209320111,500.0,0.00021917,2]
[390905831,1760209320342,500.0,0.00021917,2]
[390905832,1760209320586,500.0,0.00021917,2]
[390905833,1760209320828,500.0,0.00021917,2]
[390905834,1760209321110,500.0,0.00021917,2]
[390905835,1760209321355,500.0,0.00021917,2]
[390905836,1760209321626,500.0,0.00021917,2]
[390905837,1760209321859,500.0,0.00021917,2]
[390905838,1760209322130,500.0,0.00021917,2]
[390905839,1760209322375,500.0,0.00021917,2]
[390905840,1760209322631,500.0,0.00021917,2]
[390905841,1760209322733,-5000.0,0.00022275,2]
[390905842,1760209322930,0.01,0.00021917,2]
[390905843,1760209322953,499.99,0.00021917,2]
[390905844,1760209323141,500.0,0.00021917,2]
[390905845,1760209323449,500.0,0.00021917,2]
[390905846,1760209323706,520.53149262,0.00021917,2]
[390905847,1760209329587,-300.0,0.00022499,2]
[390905848,1760209331528,302.75,0.00018843,2]
[390905849,1760209332078,605.5,0.00020556,2]
[390905850,1760209332479,908.25,0.00022269,2]
[390905851,1760209338231,5000.0,0.00022499,2]
[390905852,1760209338892,-300.0,0.000225,2]
[390905853,1760209338923,-300.0,0.000225,2]
[390905854,1760209338953,-300.0,0.000225,2]
[390905855,1760209338982,-300.0,0.000225,2]
[390905856,1760209342506,593.77,0.00021917,2]
[390905857,1760209342755,593.77,0.00021917,2]
[390905858,1760209343170,593.77,0.00021917,2]
[390905859,1760209343343,593.77,0.00021917,2]
[390905860,1760209343595,593.77,0.00021917,2]
[390905861,1760209343831,593.77,0.00021917,2]
[390905862,1760209344077,593.77,0.00021917,2]
[390905863,1760209344323,593.77,0.00021917,2]
[390905864,1760209344389,500.0,0.00021917,2]
[390905865,1760209344577,593.77,0.00021917,2]
[390905866,1760209344665,259.64,0.00021917,2]
[390905867,1760209344951,593.77,0.00021917,2]
[390905868,1760209345198,593.77,0.00021917,2]
[390905870,1760209345609,593.77,0.00021917,2]
[390905872,1760209345725,593.77,0.00021917,2]
[390905875,1760209345967,593.77,0.00021917,2]
[390905877,1760209346195,593.77,0.00021917,2]
[390905879,1760209346429,593.77,0.00021917,2]
[390905882,1760209346669,593.77,0.00021917,2]
[390905884,1760209346901,333.82,0.00021917,2]
[390905885,1760209346924,259.95,0.00021917,2]
[390905886,1760209347156,593.77,0.00021917,2]
[390905887,1760209347404,593.77,0.00021917,2]
[390905891,1760209347656,593.77,0.00021917,2]
[390905893,1760209347900,593.77,0.00021917,2]
[390905894,1760209348143,593.77,0.00021917,2]
[390905895,1760209348382,593.78358556,0.00021917,2]
[390905896,1760209349190,169.4628755,0.00010795,2]
[390905897,1760209352437,210.5397628,0.0002159,2]
[390905898,1760209361104,5000.0,0.00022573,2]
[390905899,1760209365484,500.0,0.00021917,2]
[390905900,1760209383602,5000.0,0.000225,2]
[390905901,1760209400448,500.0,0.00021917,2]
[390905902,1760209400698,500.0,0.00021917,2]
[390905903,1760209400920,500.0,0.00021917,2]
[390905904,1760209401184,500.0,0.00021917,2]
[390905905,1760209401404,194.81916065,0.00021917,2]
[390905906,1760209406220,5000.0,0.00022573,2]
[390905908,1760209410596,279.63,0.00018836,2]
[390905909,1760209410988,559.26,0.00020548,2]
[390905910,1760209411390,838.89,0.00022261,2]
[390905911,1760209425409,503.0,0.00022499,2]
[390905912,1760209429199,5000.0,0.00022573,2]
[390905913,1760209430301,-500.0,0.00022573,2]
[390905914,1760209430328,-500.0,0.00022573,2]
[390905915,1760209430355,-500.0,0.00022573,2]
[390905916,1760209430382,-500.0,0.00022573,2]
[390905917,1760209430409,-500.0,0.00022573,2]
[390905918,1760209451529,5000.0,0.00022588,2]
[390905919,1760209474124,5000.0,0.00022588,2]
[390905920,1760209477062,160.0,0.00022587,2]
[390905921,1760209477480,-1200.0,0.00022589,2]
[390905922,1760209481469,-1200.0,0.0002259,2]
[390905923,1760209481497,-300.0,0.0002259,2]
[390905924,1760209481525,-500.0,0.0002259,2]
[390905925,1760209481553,-500.0,0.0002259,2]
[390905926,1760209481581,-208.01,0.0002259,2]
[390905927,1760209483299,-500.0,0.00022591,2]
[390905928,1760209483325,-2233.35831336,0.00022591,2]
[390905929,1760209483863,500.0,0.00021917,2]
[390905930,1760209484114,500.0,0.00021917,2]
[390905931,1760209484338,500.0,0.00021917,2]
[390905932,1760209484569,500.0,0.00021917,2]
[390905933,1760209484806,500.0,0.00021917,2]
[390905934,1760209485033,500.0,0.00021917,2]
[390905935,1760209485278,500.0,0.00021917,2]
[390905936,1760209485558,500.0,0.00021917,2]
[390905937,1760209485805,500.0,0.00021917,2]
[390905938,1760209486033,33.29337328,0.00021917,2]
[390905939,1760209486055,466.70662672,0.00021917,2]
[390905940,1760209486533,620.78256709,0.00021917,2]
[390905941,1760209488926,258.28,0.00018843,2]
[390905942,1760209489149,500.0,0.0002259,2]
[390905943,1760209489339,516.55,0.00020556,2]
[390905944,1760209489418,500.0,0.0002259,2]
[390905945,1760209489688,500.0,0.0002259,2]
[390905946,1760209489737,774.83,0.00022269,2]
[390905947,1760209489912,460.56,0.0002259,2]
[390905948,1760209496618,5000.0,0.00022591,2]
[390905949,1760209496733,402.30080619,0.00022591,2]
[390905950,1760209496755,97.69919381,0.00022591,2]
[390905951,1760209498894,-300.0,0.00022591,2]
[390905952,1760209498923,-300.0,0.00022591,2]
[390905953,1760209498950,-300.0,0.00022591,2]
[390905954,1760209499088,-300.0,0.00022591,2]
[390905955,1760209499116,-500.0,0.00022591,2]
[390905956,1760209499147,-500.0,0.00022591,2]
[390905957,1760209499175,-629.97,0.00022591,2]
[390905958,1760209499203,-500.0,0.00022591,2]
[390905959,1760209499230,-500.0,0.00022591,2]
[390905960,1760209499256,-500.0,0.00022591,2]
[390905961,1760209499282,-510.1,0.00022591,2]
[390905962,1760209499503,-500.0,0.00022591,2]
[390905963,1760209499529,-500.0,0.00022591,2]
[390905964,1760209499555,-500.0,0.00022591,2]
[390905965,1760209499581,-615.85,0.00022591,2]
[390905966,1760209499607,-500.0,0.00022591,2]
[390905967,1760209499634,-615.85,0.00022591,2]
[390905968,1760209499660,-615.85,0.00022591,2]
[390905969,1760209499687,-615.85,0.00022591,2]
[390905970,1760209499714,-457.36,0.00022591,2]
[390905971,1760209499999,-158.49,0.00022591,2]
[390905972,1760209500026,-615.85,0.00022591,2]
[390905973,1760209500056,-615.85,0.00022591,2]
[390905974,1760209500085,-615.85,0.00022591,2]
[390905975,1760209500112,-615.85,0.00022591,2]
[390905976,1760209500145,-615.85,0.00022591,2]
[390905977,1760209500174,-615.85,0.00022591,2]
[390905978,1760209500202,-615.85,0.00022591,2]
[390905979,1760209500230,-445.28,0.00022591,2]
[390905980,1760209500327,-170.57,0.00022591,2]
[390905981,1760209500355,-615.85,0.00022591,2]
[390905982,1760209500382,-615.85,0.00022591,2]
[390905983,1760209500411,-615.85,0.00022591,2]
[390905984,1760209500442,-615.85,0.00022591,2]
[390905985,1760209500468,-615.85,0.00022591,2]
[390905986,1760209500496,-615.85,0.00022591,2]
[390905987,1760209500522,-615.85,0.00022591,2]
[390905988,1760209500550,-421.12,0.00022591,2]
[390905989,1760209500919,-194.73,0.00022591,2]
[390905990,1760209500948,-615.85,0.00022591,2]
[390905991,1760209500975,-615.85,0.00022591,2]
[390905992,1760209501001,-616.06758764,0.00022591,2]
[390905993,1760209501028,-500.0,0.00022591,2]
[390905994,1760209501055,-500.0,0.00022591,2]
[390905995,1760209501082,-255.92,0.00022591,2]
[390905996,1760209501110,-500.0,0.00022591,2]
[390905997,1760209501142,-500.0,0.00022591,2]
[390905998,1760209501171,-500.0,0.00022591,2]
[390905999,1760209501259,-500.0,0.00022591,2]
[390906000,1760209501288,-500.0,0.00022591,2]
[390906001,1760209501316,-500.0,0.00022591,2]
[390906002,1760209501344,-500.0,0.00022591,2]
[390906003,1760209501372,-500.0,0.00022591,2]
[390906004,1760209501401,-162.84,0.00022591,2]
[390906005,1760209501432,-500.0,0.00022591,2]
[390906006,1760209501460,-500.0,0.00022591,2]
[390906007,1760209501491,-500.0,0.00022591,2]
[390906008,1760209501523,-500.0,0.00022591,2]
[390906009,1760209501552,-174.33,0.00022591,2]
[390906010,1760209501821,-325.67,0.00022591,2]
[390906011,1760209501848,-500.0,0.00022591,2]
[390906012,1760209501874,-159.85458341,0.00022591,2]
[390906013,1760209501902,-500.0,0.00022591,2]
[390906014,1760209501931,-511.54,0.00022591,2]
[390906015,1760209501960,-1072.2,0.00022591,2]
[390906016,1760209501989,-1072.2,0.00022591,2]
[390906017,1760209502017,-644.88083318,0.00022591,2]
[390906018,1760209502364,-427.31916682,0.00022591,2]
[390906019,1760209502394,-1072.2,0.00022591,2]
[390906020,1760209502427,-1072.2,0.00022591,2]
[390906021,1760209502455,-1072.2,0.00022591,2]
[390906022,1760209502483,-1072.2,0.00022591,2]
[390906023,1760209504514,-1072.2,0.00022591,2]
[390906024,1760209504544,-1072.2,0.00022591,2]
[390906025,1760209504573,-1072.2,0.00022591,2]
[390906026,1760209504601,-1072.2,0.00022591,2]
[390906027,1760209504630,-350.21,0.00022591,2]
[390906028,1760209504831,-721.99,0.00022591,2]
[390906029,1760209504860,-1072.2,0.00022591,2]
[390906030,1760209504889,-1072.2,0.00022591,2]
[390906031,1760209504918,-1072.2,0.00022591,2]
[390906032,1760209504949,-1050.63,0.00022591,2]
[390906033,1760209505385,-21.57,0.00022591,2]
[390906034,1760209505415,-1072.2,0.00022591,2]
[390906035,1760209505444,-1072.2,0.00022591,2]
[390906036,1760209505474,-1072.2,0.00022591,2]
[390906037,1760209505505,-1072.2,0.00022591,2]
[390906038,1760209505535,-307.07,0.00022591,2]
[390906039,1760209505693,-765.13,0.00022591,2]
[390906040,1760209505721,-1072.2,0.00022591,2]
[390906041,1760209505750,-1072.2,0.00022591,2]
[390906042,1760209505778,-1072.36212046,0.00022591,2]
[390906043,1760209505891,-500.0,0.00022591,2]
[390906044,1760209505921,-500.0,0.00022591,2]
[390906045,1760209506152,-500.0,0.00022591,2]
[390906046,1760209506181,-500.0,0.00022591,2]
[390906047,1760209506211,-385.84,0.00022591,2]
[390906048,1760209506240,-500.0,0.00022591,2]
[390906049,1760209506272,-500.0,0.00022591,2]
[390906050,1760209506299,-612.28,0.00022591,2]
[390906051,1760209506327,-500.0,0.00022591,2]
[390906052,1760209506356,-500.0,0.00022591,2]
[390906053,1760209506393,-500.0,0.00022591,2]
[390906054,1760209506421,-500.0,0.00022591,2]
[390906055,1760209506700,-500.0,0.00022591,2]
[390906056,1760209506728,-500.0,0.00022591,2]
[390906057,1760209506756,-500.0,0.00022591,2]
[390906058,1760209506788,-500.0,0.00022591,2]
[390906059,1760209506816,-500.0,0.00022591,2]
[390906060,1760209506844,-419.55,0.00022591,2]
[390906061,1760209506872,-500.0,0.00022591,2]
[390906062,1760209506902,-500.0,0.00022591,2]
[390906063,1760209506942,-500.0,0.00022591,2]
[390906064,1760209506974,-500.0,0.00022591,2]
[390906065,1760209507100,-500.0,0.00022591,2]
[390906066,1760209507132,-177.72,0.00022591,2]
[390906067,1760209507161,-500.0,0.00022591,2]
[390906068,1760209507192,-500.0,0.00022591,2]
[390906069,1760209507221,-500.0,0.00022591,2]
[390906070,1760209507252,-500.0,0.00022591,2]
[390906071,1760209507284,-500.0,0.00022591,2]
[390906072,1760209507314,-500.0,0.00022591,2]
[390906073,1760209507344,-500.0,0.00022591,2]
[390906074,1760209507372,-500.0,0.00022591,2]
[390906075,1760209507399,-144.57,0.00022591,2]
[390906076,1760209507451,-355.43,0.00022591,2]
[390906077,1760209507480,-500.0,0.00022591,2]
[390906078,1760209507509,-277.78345904,0.00022591,2]
[390906079,1760209507817,500.0,0.00022591,2]
[390906080,1760209509371,500.0,0.00022591,2]
[390906081,1760209509673,590.92478939,0.00022591,2]
[390906082,1760209513099,500.0,0.00022591,2]
[390906083,1760209513399,500.0,0.00022591,2]
[390906084,1760209513471,500.0,0.00022591,2]
[390906085,1760209513648,500.0,0.00022591,2]
[390906086,1760209513707,500.0,0.00022591,2]
[390906087,1760209513948,268.06,0.00022591,2]
[390906088,1760209515459,500.0,0.00022591,2]
[390906089,1760209515759,500.0,0.00022591,2]
[390906090,1760209515786,500.0,0.00022591,2]
[390906091,1760209516033,500.0,0.00022591,2]
[390906092,1760209516060,527.07106977,0.00022591,2]
[390906093,1760209516283,500.0,0.00022591,2]
[390906094,1760209516528,500.0,0.00022591,2]
[390906095,1760209516883,500.0,0.00022591,2]
[390906096,1760209517021,500.0,0.00022591,2]
[390906097,1760209517261,500.0,0.00022591,2]
[390906098,1760209517524,500.0,0.00022591,2]
[390906099,1760209517789,238.78,0.00022591,2]
[390906100,1760209519764,375.17414084,0.00022591,2]
[390906101,1760209519788,4624.82585916,0.00022591,2]
[390906102,1760209520627,500.0,0.0002259,2]
[390906103,1760209521994,500.0,0.00022591,2]
[390906104,1760209522267,500.0,0.00022591,2]
[390906105,1760209522355,500.0,0.00022591,2]
[390906106,1760209523023,500.0,0.00021917,2]
[390906107,1760209523267,500.0,0.00021917,2]
[390906108,1760209523541,500.0,0.00021917,2]
[390906109,1760209523790,500.0,0.00021917,2]
[390906110,1760209524085,500.0,0.00021917,2]
[390906111,1760209524155,500.0,0.00022591,2]
[390906112,1760209524326,375.18414084,0.00021917,2]
[390906113,1760209524349,119.97585916,0.00021917,2]
[390906114,1760209528458,-500.0,0.0002259,2]
[390906115,1760209528486,-500.0,0.0002259,2]
[390906116,1760209528514,-500.0,0.0002259,2]
[390906117,1760209528543,-500.0,0.0002259,2]
[390906118,1760209528572,-500.0,0.0002259,2]
[390906119,1760209528601,-500.0,0.0002259,2]
[390906120,1760209528629,-525.36,0.0002259,2]
[390906121,1760209529462,-500.0,0.00022591,2]
[390906122,1760209529492,-500.0,0.00022591,2]
[390906123,1760209529523,-500.0,0.00022591,2]
[390906124,1760209529553,-500.0,0.00022591,2]
[390906125,1760209529587,-500.0,0.00022591,2]
[390906126,1760209529620,-500.0,0.00022591,2]
[390906127,1760209529651,-500.0,0.00022591,2]
[390906128,1760209529678,-500.0,0.00022591,2]
[390906129,1760209529708,-500.0,0.00022591,2]
[390906130,1760209529735,-500.0,0.00022591,2]
[390906131,1760209530295,-500.0,0.00022591,2]
[390906132,1760209530323,-178.3188313,0.00022591,2]
[390906133,1760209530354,-500.0,0.00022591,2]
[390906134,1760209530383,-422.10639068,0.00022591,2]
[390906135,1760209530411,-500.0,0.00022591,2]
[390906136,1760209530440,-500.0,0.00022591,2]
[390906137,1760209530474,-500.0,0.00022591,2]
[390906138,1760209530504,-500.0,0.00022591,2]
[390906139,1760209530532,-246.42167549,0.00022591,2]
[390906140,1760209530561,-500.0,0.00022591,2]
[390906141,1760209530590,-483.51300941,0.00022591,2]
[390906142,1760209530686,-500.0,0.00022591,2]
[390906143,1760209530717,-500.0,0.00022591,2]
[390906144,1760209530746,-500.0,0.00022591,2]
[390906145,1760209530776,-321.76299945,0.00022591,2]
[390906146,1760209530805,-500.0,0.00022591,2]
[390906147,1760209530833,-500.0,0.00022591,2]
[390906148,1760209530861,-500.0,0.00022591,2]
[390906149,1760209530889,-500.0,0.00022591,2]
[390906150,1760209530919,-397.15152757,0.00022591,2]
[390906151,1760209530948,-500.0,0.00022591,2]
[390906152,1760209530978,-62.18094596,0.00022591,2]
[390906153,1760209531331,-437.81905404,0.00022591,2]
[390906154,1760209531363,-500.0,0.00022591,2]
[390906155,1760209531395,-500.0,0.00022591,2]
[390906156,1760209531424,-500.0,0.00022591,2]
[390906157,1760209531455,-500.0,0.00022591,2]
[390906158,1760209531486,-500.0,0.00022591,2]
[390906159,1760209531517,-500.0,0.00022591,2]
[390906160,1760209531547,-500.0,0.00022591,2]
[390906161,1760209531577,-500.0,0.00022591,2]
[390906162,1760209531609,-500.0,0.00022591,2]
[390906163,1760209531935,-500.0,0.00022591,2]
[390906164,1760209531964,-500.0,0.00022591,2]
[390906165,1760209531993,-500.0,0.00022591,2]
[390906166,1760209532022,-500.0,0.00022591,2]
[390906167,1760209532052,-500.0,0.00022591,2]
[390906168,1760209532080,-500.0,0.00022591,2]
[390906169,1760209532109,-500.0,0.00022591,2]
[390906170,1760209532146,-500.0,0.00022591,2]
[390906171,1760209532186,-500.0,0.00022591,2]
[390906172,1760209532224,-500.0,0.00022591,2]
[390906173,1760209532731,-500.0,0.00022591,2]
[390906174,1760209533343,-500.0,0.00022591,2]
[390906175,1760209533464,-500.0,0.00022591,2]
[390906176,1760209542164,500.0,0.00021917,2]
[390906177,1760209542589,5000.0,0.0002259,2]
[390906178,1760209543905,441.3289675,0.00022342,2]
[390906179,1760209544608,-367.75346453,0.00022591,2]
[390906180,1760209545166,-132.24653547,0.00022591,2]
[390906181,1760209548551,-500.0,0.00022591,2]
[390906182,1760209548578,-500.0,0.00022591,2]
[390906183,1760209548606,-500.0,0.00022591,2]
[390906184,1760209548634,-500.0,0.00022591,2]
[390906185,1760209548662,-500.0,0.00022591,2]
[390906186,1760209548690,-373.88,0.00022591,2]
[390906187,1760209553403,500.0,0.00021917,2]
[390906188,1760209553650,500.0,0.00021917,2]
[390906189,1760209553910,500.0,0.00021917,2]